bitfinex-derivatives/quotes_ETHF0:USTF0_20251009
["timestamp","ask_amount","ask_price","bid_price","bid_amount"]
[1760038683369,0.76069955,4335.2,4335.1,1.16716]
[1760038683771,0.53079955,4335.2,4335.1,1.16716]
[1760038684371,0.2299,4335.4,4335.3,0.41494]
[1760038684572,0.76006947,4335.4,4335.3,1.16714]
[1760038684771,3.71484296,4335.4,4335.3,1.16714]
[1760038686070,3.94434296,4335.4,4335.3,1.16714]
[1760038687068,3.48494296,4335.4,4335.3,1.16714]
[1760038687265,0.7086,4336.5,4336.4,0.5368]
[1760038687466,0.7086,4336.5,4336.4,0.7544]
[1760038687467,0.95375812,4336.5,4336.4,0.7544]
[1760038687761,3.59002945,4336.5,4336.4,0.7544]
[1760038687967,0.2112,4336.8,4336.7,0.41481]
[1760038688170,0.21390598,4336.8,4336.7,1.17201145]
[1760038688470,3.27457731,4336.8,4336.7,1.17201145]
[1760038689764,3.27457731,4336.8,4336.7,0.75720145]
[1760038692371,3.06337731,4336.8,4336.7,0.75720145]
[1760038692568,0.231,4337.9,4337.8,0.5368]
[1760038692865,3.70288313,4337.9,4337.8,0.7544]
[1760038693069,3.25868313,4337.9,4337.8,0.7544]
[1760038693272,3.04748313,4337.9,4337.8,0.7544]
[1760038693575,0.00290141,4337.9,4337.8,0.4381]
[1760038693875,2.97427968,4337.9,4337.8,0.7544]
[1760038694475,0.00290141,4337.9,4337.8,0.7544]
[1760038699076,0.2842,4339.4,4338.6,0.41462]
[1760038699278,0.7086,4339.4,4339.3,0.5368]
[1760038699480,3.66768621,4339.4,4339.3,0.5368]
[1760038699877,3.66768621,4339.4,4339.3,0.3163]
[1760038700181,3.66993933,4339.4,4339.3,0.3163]
[1760038702879,4.1943493,4339.4,4339.3,0.3163]
[1760038703072,3.38573933,4339.4,4339.3,0.7684]
[1760038706587,3.66963933,4339.4,4339.3,0.7684]
[1760038706773,3.66963933,4339.4,4339.0,0.3248]
[1760038706978,0.7367,4338.7,4338.6,0.556]
[1760038708178,0.4528,4338.7,4338.6,1.20223]
[1760038708578,0.2839,4339.1,4338.7,0.41461]
[1760038708780,0.4528,4339.1,4339.0,0.9266]
[1760038709082,0.231,4339.3,4339.1,0.87738]
[1760038709379,3.56513804,4339.2,4339.1,1.20218]
[1760038709573,3.79713804,4339.2,4339.1,1.20218]
[1760038710785,3.27189675,4339.2,4339.1,1.20218]
[1760038711480,3.79764539,4339.2,4339.1,1.20218]
[1760038716588,3.56564539,4339.2,4339.1,1.20218]
[1760038716996,3.78854539,4339.2,4339.1,0.7876]
[1760038717292,4.29374539,4339.2,4339.1,0.7876]
[1760038717493,4.01024539,4339.2,4339.1,0.7876]
[1760038717691,4.29374539,4339.2,4339.1,0.97058]
[1760038718890,5.52308074,4339.2,4339.1,0.97058]
[1760038719188,4.29374539,4339.2,4339.1,0.97058]
[1760038719686,4.29374539,4339.2,4339.1,0.556]
[1760038719884,0.4446,4338.6,4338.4,0.41464]
[1760038720185,5.52029753,4338.5,4338.4,0.332]
[1760038720387,4.28212917,4338.5,4338.0,0.1299]
[1760038720586,1.96709757,4338.3,4338.2,0.332]
[1760038720786,1.25384864,4338.3,4338.2,0.332]
[1760038720988,3.76165454,4338.3,4338.2,0.332]
[1760038721190,4.29037646,4338.3,4338.2,0.332]
[1760038721389,4.29037646,4338.3,4338.0,0.54457]
[1760038721585,0.7281,4338.1,4338.0,0.4619]
[1760038721787,1.25682192,4338.1,4338.0,0.332]
[1760038721990,4.24225347,4338.1,4338.0,0.332]
[1760038722290,0.7281,4337.9,4337.5,0.332]
[1760038722587,1.8830231,4338.2,4337.0,0.137]
[1760038722588,0.7281,4337.3,4337.2,0.5541]
[1760038722893,4.2176038,4337.3,4337.2,0.5541]
[1760038723792,4.2176038,4337.3,4337.2,0.332]
[1760038724092,4.2176038,4337.3,4337.2,0.5541]
[1760038724286,5.45840423,4337.3,4337.2,0.5541]
[1760038725195,4.2176038,4337.3,4337.2,0.5541]
[1760038725592,0.75072192,4337.3,4337.2,0.332]
[1760038725892,0.75072192,4337.3,4337.2,0.7758]
[1760038726095,0.96622192,4337.3,4337.2,0.7758]
[1760038726596,1.24982192,4337.3,4337.2,0.7758]
[1760038726797,4.27218483,4337.3,4337.2,0.332]
[1760038728001,4.27218483,4337.3,4337.2,0.5502]
[1760038728196,4.27218483,4337.3,4337.2,0.332]
[1760038728794,3.98858483,4337.3,4337.1,0.76217]
[1760038728993,0.7211,4337.2,4337.1,0.76217]
[1760038729300,3.76524876,4337.2,4337.1,0.76217]
[1760038729597,3.76524876,4337.2,4337.1,0.98037]
[1760038729797,3.48164876,4337.2,4337.1,1.20597]
[1760038731102,0.4375,4337.9,4337.8,0.4147]
[1760038731304,0.52010137,4337.9,4337.8,1.2059]
[1760038731508,0.4375,4338.4,4338.3,1.20585]
[1760038731802,3.94632928,4338.4,4338.3,1.20585]
[1760038733395,0.2836,4338.3,4338.1,0.3474]
[1760038733701,0.4375,4337.6,4337.5,0.923]
[1760038734599,0.7211,4337.6,4337.5,1.11213]
[1760038734995,0.4375,4337.6,4337.5,1.33773]
[1760038735892,0.4375,4338.2,4338.1,0.85847]
[1760038736097,0.95758354,4338.2,4338.1,1.20587]
[1760038736296,3.42300412,4338.2,4338.1,1.20587]
[1760038736807,3.943119,4338.2,4338.1,1.20587]
[1760038737000,4.226719,4338.2,4338.1,1.20587]
[1760038737406,3.70660412,4338.2,4338.1,1.20587]
[1760038738205,3.70660412,4338.2,4337.7,0.3474]
[1760038738499,0.222,4338.0,4337.9,0.41469]
[1760038738700,0.7211,4338.0,4337.9,0.76209]
[1760038738898,4.19703129,4338.0,4337.9,0.76209]
[1760038739298,4.19703129,4338.0,4337.9,0.98029]
[1760038741009,4.19703129,4338.0,4337.9,0.76209]
[1760038741306,4.19703129,4338.0,4337.9,0.98029]
[1760038741705,3.39326779,4338.0,4337.9,1.20589]
[1760038742406,4.19722371,4338.0,4337.9,0.76209]
[1760038743403,4.19722371,4338.0,4337.9,0.98029]
[1760038744004,3.67686779,4338.0,4337.9,0.98029]
[1760038744208,3.17776779,4338.0,4337.9,1.20589]
[1760038744407,0.2836,4339.0,4338.9,0.4146]
[1760038744615,0.9521,4339.0,4338.9,0.5656]
[1760038744807,4.51275184,4339.0,4338.9,0.3474]
[1760038745003,4.60665184,4339.0,4337.8,1.03674]
[1760038745201,0.7211,4338.2,4338.1,0.98027]
[1760038745405,1.24180637,4338.2,4338.1,0.76207]
[1760038745600,0.4375,4338.2,4338.1,0.98027]
[1760038745903,0.7207,4338.2,4338.1,0.76207]
[1760038746107,1.2414061,4338.2,4338.1,0.76207]
[1760038746612,4.23406487,4338.2,4338.1,0.76207]
[1760038746805,4.23406487,4338.2,4338.1,0.98657]
[1760038748708,3.95086487,4338.2,4338.1,1.21027]
[1760038749213,4.23406487,4338.2,4338.1,1.21027]
[1760038749414,3.95086487,4338.2,4338.1,1.21027]
[1760038750409,4.23406487,4338.2,4338.1,0.5719]
[1760038750613,4.23406487,4338.2,4337.8,0.3172]
[1760038750915,0.7223,4338.0,4337.9,0.41469]
[1760038751117,1.2430061,4338.0,4337.9,0.41469]
[1760038751313,4.22810549,4338.0,4337.9,0.95639]
[1760038751716,3.94490549,4338.0,4337.9,0.95639]
[1760038751915,3.94490549,4338.0,4337.9,1.18009]
[1760038754517,4.22810549,4338.0,4337.9,0.95639]
[1760038755111,4.22810549,4338.0,4337.9,0.41469]
[1760038755306,4.27010549,4338.0,4337.8,0.4147]
[1760038755507,1.2430061,4337.9,4337.8,0.4147]
[1760038755714,0.2832,4337.8,4337.5,0.1318]
[1760038755921,0.2832,4337.5,4336.9,1.26797]
[1760038756114,1.2430061,4337.4,4337.3,0.63924]
[1760038756418,1.2430061,4337.4,4337.3,0.95644]
[1760038756816,4.22680652,4337.4,4337.3,0.95644]
[1760038758123,4.22680652,4337.4,4337.3,0.73194]
[1760038759615,4.22680652,4337.4,4337.3,0.95644]
[1760038761226,4.22680652,4337.4,4337.3,0.73194]
[1760038761418,4.22680652,4337.4,4337.3,0.41474]
[1760038762118,0.7223,4336.9,4336.8,0.41479]
[1760038762326,1.4740061,4336.9,4336.8,0.41479]
[1760038762520,4.5015417,4336.9,4336.8,0.41479]
[1760038763119,4.5015417,4336.9,4336.7,0.00280145]
[1760038763324,1.2430061,4336.8,4336.7,0.00280145]
[1760038763724,4.28920367,4336.8,4336.7,0.00280145]
[1760038764620,4.28920367,4336.8,4336.7,0.41761145]
[1760038765529,4.28920367,4336.8,4336.7,0.73481145]
[1760038766233,4.28920367,4336.8,4336.7,0.41761145]
[1760038768932,4.28920367,4336.8,4336.7,0.73481145]
[1760038769634,4.28920367,4336.8,4336.7,0.00280145]
[1760038770437,4.28920367,4336.8,4336.7,0.73481145]
[1760038777041,4.28785908,4336.8,4336.7,0.73481145]
[1760038777241,4.28785908,4336.8,4336.7,0.00280145]
[1760038779036,4.28785908,4336.8,4336.7,0.41761145]
[1760038780149,3.76849757,4336.8,4336.7,0.41761145]
[1760038780336,4.28815872,4336.8,4336.7,0.41761145]
[1760038780542,4.28815872,4336.8,4336.7,0.00280145]
[1760038780941,4.28815872,4336.8,4336.7,0.41761145]
[1760038781141,4.28815872,4336.8,4336.7,0.73341145]
[1760038781342,4.28815872,4336.8,4336.7,0.96541145]
[1760038781548,4.28815872,4336.8,4336.7,0.31860145]
[1760038781740,4.28815872,4336.8,4336.7,0.00280145]
[1760038783149,0.7414,4336.3,4336.2,0.41486]
[1760038783448,0.7414,4336.3,4336.2,0.73066]
[1760038783449,3.98823116,4336.3,4336.2,0.73066]
[1760038783841,3.98823116,4336.3,4336.2,0.41486]
[1760038784041,3.99113226,4336.3,4336.2,0.41671687]
[1760038784745,3.99113226,4336.3,4336.2,0.00185687]
[1760038784939,4.51134339,4336.3,4336.2,0.00185687]
[1760038794255,4.28034339,4336.3,4336.2,0.33245687]
[1760038794457,4.51134339,4336.3,4336.2,0.97201687]
[1760038798257,4.51134339,4336.3,4336.2,0.33245687]
[1760038799359,4.51134339,4336.3,4336.2,0.74731687]
[1760038799551,4.51134339,4336.3,4336.2,0.33245687]
[1760038799751,4.51134339,4336.3,4336.2,0.74731687]
[1760038800456,4.51134339,4336.3,4336.2,0.33245687]
[1760038800654,4.51134339,4336.3,4336.2,0.74731687]
[1760038800857,4.51134339,4336.3,4336.2,0.00185687]
[1760038801557,4.51134339,4336.3,4336.2,0.41671687]
[1760038801858,4.51134339,4336.3,4336.2,0.74731687]
[1760038802459,3.01873226,4336.3,4336.2,1.19351687]
[1760038802660,4.25994069,4336.3,4336.2,0.00185687]
[1760038803156,4.25994069,4336.3,4336.2,0.33245687]
[1760038804258,4.25994069,4336.3,4336.2,0.00185687]
[1760038804456,0.2838,4336.2,4335.4,3.5384]
[1760038804657,0.7208,4335.5,4335.4,3.5384]
[1760038805057,3.74694108,4335.5,4335.4,3.95333]
[1760038805255,3.74694108,4335.5,4335.1,0.41496]
[1760038805559,0.7208,4335.2,4335.1,0.00249268]
[1760038805859,4.45835872,4335.2,4335.1,0.00249268]
[1760038806058,4.45835872,4335.2,4334.6,0.3183]
[1760038806362,0.714,4334.4,4334.3,0.3183]
[1760038806657,0.714,4334.4,4334.1,0.41505]
[1760038806658,0.714,4334.3,4334.2,0.3183]
[1760038806955,0.2838,4334.2,4333.9,0.3183]
[1760038807162,0.2838,4333.9,4333.8,3.2078]
[1760038807360,0.4302,4333.6,4333.5,0.41511]
[1760038807556,0.945,4333.6,4333.5,0.41511]
[1760038807760,3.92345745,4333.6,4333.5,0.32003082]
[1760038808462,3.92345745,4333.6,4333.5,0.67743082]
[1760038808660,3.40865745,4333.6,4333.5,0.89973082]
[1760038811257,3.3029,4334.5,4334.3,0.96134]
[1760038811258,0.714,4334.4,4334.3,0.96134]
[1760038811456,0.6612,4334.4,4334.3,0.96134]
[1760038811660,3.97956037,4334.4,4334.3,1.18364]
[1760038815165,3.69576037,4334.4,4334.3,1.18364]
[1760038815353,3.97956037,4334.4,4334.3,1.18364]
[1760038817663,3.97956037,4334.4,4334.3,0.96134]
[1760038819663,3.97956037,4334.4,4334.3,0.73334]
[1760038819861,3.97956037,4334.4,4334.3,0.3183]
[1760038820056,0.4302,4334.2,4334.1,0.73336]
[1760038820267,0.945,4334.2,4334.1,0.41506]
[1760038820463,0.2114,4334.1,4333.8,0.41508]
[1760038820662,3.2142392,4334.2,4333.5,0.00173082]
[1760038820663,0.714,4333.6,4333.5,0.00173082]
[1760038820858,0.945,4333.6,4333.5,0.00173082]
[1760038821170,3.90036416,4333.6,4333.5,0.00173082]
[1760038821762,3.61656416,4333.6,4333.5,1.18544082]
[1760038822064,3.61656416,4333.6,4333.5,1.31484082]
[1760038822465,3.40516416,4333.6,4333.5,1.31484082]
[1760038823864,3.61656416,4333.6,4333.5,1.31484082]
[1760038824470,3.90036416,4333.6,4333.5,0.96314082]
[1760038824671,3.90036416,4333.6,4333.5,0.73514082]
[1760038824870,3.90036416,4333.6,4333.5,0.32003082]
[1760038826173,3.90036416,4333.6,4333.5,0.73514082]
[1760038826574,3.90036416,4333.6,4333.5,0.96314082]
[1760038826870,3.90036416,4333.6,4333.5,1.09254082]
[1760038827267,3.90036416,4333.6,4333.5,0.73514082]
[1760038827467,3.90036416,4333.6,4333.5,1.09254082]
[1760038828368,3.18636416,4333.6,4333.5,1.31484082]
[1760038828776,2.95536416,4333.6,4333.5,1.31484082]
[1760038830670,3.17416416,4333.6,4333.5,1.31484082]
[1760038831274,3.66936416,4333.6,4333.5,1.31484082]
[1760038831965,3.66936416,4333.6,4333.5,0.00173082]
[1760038832570,3.66936416,4333.6,4333.5,0.41684082]
[1760038833075,3.66936416,4333.6,4333.5,0.73514082]
[1760038834072,4.1930916,4333.6,4333.5,0.73514082]
[1760038834671,4.1930916,4333.6,4333.5,1.09254082]
[1760038836077,4.4240916,4333.6,4333.5,1.09254082]
[1760038838175,4.4240916,4333.6,4333.5,0.75624082]
[1760038838576,4.4240916,4333.6,4333.5,0.00173082]
[1760038838776,4.4240916,4333.6,4333.1,3.2078]
[1760038838777,0.4378,4333.0,4332.9,0.0230795]
[1760038839071,3.99777728,4333.0,4332.9,0.0230795]
[1760038839277,4.52150472,4333.0,4332.9,0.0230795]
[1760038839974,4.52438027,4333.0,4332.9,0.02478235]
[1760038840281,8.80238027,4333.0,4331.9,0.41526]
[1760038840481,0.4378,4332.1,4332.0,0.41526]
[1760038840677,0.953,4332.1,4332.0,0.41526]
[1760038840978,4.46699399,4332.1,4332.0,0.75466]
[1760038841281,4.46699399,4332.1,4332.0,0.75674211]
[1760038841780,4.46699399,4332.1,4332.0,0.00208211]
[1760038842375,0.4378,4331.7,4331.2,0.41533]
[1760038842580,0.4378,4331.3,4331.2,1.20263]
[1760038842780,0.6688,4331.3,4331.2,1.20263]
[1760038842979,3.60167293,4331.3,4331.2,1.20263]
[1760038843180,3.88587293,4331.3,4331.2,1.20263]
[1760038843484,3.88587293,4331.3,4331.2,1.20443172]
[1760038845281,3.60167293,4331.3,4331.2,1.20443172]
[1760038845883,3.88567293,4331.3,4331.2,0.98023172]
[1760038846283,2.85735293,4331.3,4331.2,1.19663172]
[1760038846579,0.00287555,4333.0,4332.9,0.7514]
[1760038846888,0.00287555,4333.0,4332.9,3.9592]
[1760038847785,3.2078,4334.6,4334.0,0.136]
[1760038847983,0.58752215,4334.5,4333.7,0.73139]
[1760038848183,0.52252215,4334.4,4333.7,0.73139]
[1760038848382,0.231,4334.3,4333.7,0.73139]
[1760038848585,0.52252215,4334.2,4333.7,0.41509]
[1760038848781,0.231,4334.1,4333.5,3.3438]
[1760038849086,0.231,4334.1,4333.5,3.75891]
[1760038849087,0.52252215,4334.0,4333.5,3.75891]
[1760038849287,0.231,4333.9,4333.5,3.75891]
[1760038849485,0.52252215,4333.8,4333.5,3.75891]
[1760038849678,3.22140538,4333.9,4333.6,0.4151]
[1760038849888,2.99040538,4333.7,4333.6,0.7314]
[1760038850090,0.231,4333.7,4333.6,0.7314]
[1760038850589,3.24915134,4333.7,4333.6,0.7314]
[1760038851582,3.24915134,4333.7,4333.6,0.4151]
[1760038851788,3.24915134,4333.7,4333.5,0.55111]
[1760038851985,3.24915134,4333.7,4333.5,0.86741]
[1760038856495,3.24915134,4333.7,4333.5,0.55111]
[1760038856692,3.24915134,4333.7,4333.6,0.3163]
[1760038856894,3.24915134,4333.7,4333.6,0.535]
[1760038857490,3.24915134,4333.7,4333.6,0.7514]
[1760038857889,0.002468,4334.2,4334.1,0.4351]
[1760038858090,0.233468,4334.2,4334.1,0.7514]
[1760038858290,3.23060804,4334.2,4334.1,0.7514]
[1760038858995,3.7532443,4334.2,4334.1,3.9592]
[1760038859195,3.7532443,4334.2,4334.1,4.37426]
[1760038861296,3.7532443,4334.2,4334.1,0.41506]
[1760038861800,3.7532443,4334.2,4334.1,0.73136]
[1760038862090,3.7532443,4334.2,4333.6,3.2078]
[1760038862295,3.7532443,4334.2,4334.0,0.86736]
[1760038862296,0.52263626,4334.1,4334.0,0.86736]
[1760038862685,3.56741462,4334.1,4334.0,0.86736]
[1760038863097,3.56741462,4334.1,4334.0,1.08606]
[1760038863298,3.79841462,4334.1,4334.0,1.08606]
[1760038863496,3.79841462,4334.1,4334.0,0.86736]
[1760038865995,3.79841462,4334.1,4334.0,0.41506]
[1760038866193,3.79841462,4334.1,4333.8,0.41508]
[1760038866393,0.52263626,4334.0,4333.8,0.41508]
[1760038866691,3.73065681,4333.9,4333.8,0.41508]
[1760038867098,0.75363626,4333.9,4333.8,0.41508]
[1760038867397,3.80091446,4333.9,4333.8,0.75088]
[1760038869001,3.2782782,4333.9,4333.8,0.96278]
[1760038869300,3.0472782,4333.9,4333.8,6.18458]
[1760038869695,0.231,4334.0,4333.9,0.75088]
[1760038869895,2.93273198,4333.9,4333.6,3.2078]
[1760038870200,0.231,4333.8,4333.7,0.3358]
[1760038870898,3.19761702,4333.8,4333.7,0.7509]
[1760038871098,3.19761702,4333.8,4333.7,0.9628]
[1760038871298,2.96661702,4333.8,4333.7,0.9628]
[1760038871494,3.19761702,4333.8,4333.7,0.4151]
[1760038871694,0.231,4333.8,4333.7,0.4151]
[1760038871998,3.21516479,4333.8,4333.7,0.4151]
[1760038872202,3.21516479,4333.8,4333.6,3.6229]
[1760038872499,3.21516479,4333.8,4333.7,0.4151]
[1760038874100,3.73853004,4333.8,4333.7,0.4151]
[1760038874894,3.50753004,4333.8,4333.7,0.9628]
[1760038875100,3.73900756,4333.8,4333.7,1.1846]
[1760038876905,3.50800756,4333.8,4333.7,1.1846]
[1760038878097,3.50800756,4333.8,4333.7,6.1846]
[1760038878098,2.88165912,4333.8,4333.7,6.1846]
[1760038878303,0.4468,4335.5,4335.4,0.4337]
[1760038878510,0.4468,4335.5,4335.4,0.7695]
[1760038878707,0.9939,4335.5,4335.4,0.7695]
[1760038879404,0.99589389,4335.5,4335.4,0.77245339]
[1760038879706,0.67979389,4335.5,4335.4,0.77245339]
[1760038880096,0.99589389,4335.5,4335.4,0.77245339]
[1760038880302,0.99589389,4335.5,4335.4,0.00295339]
[1760038880708,1.11919389,4335.5,4335.4,0.00295339]
[1760038881904,0.4468,4335.0,4334.9,3.2078]
[1760038882098,0.9939,4335.0,4334.9,3.2078]
[1760038882303,4.02785482,4335.0,4334.9,3.2078]
[1760038882908,4.02785482,4335.0,4334.9,3.21064605]
[1760038883511,4.02785482,4335.0,4334.9,0.00284605]
[1760038887401,3.48075482,4335.0,4334.9,0.77234605]
[1760038887605,3.26495482,4335.0,4334.9,0.77234605]
[1760038887805,3.48465482,4335.0,4334.9,0.77234605]
[1760038888008,4.02785482,4335.0,4334.9,0.77234605]
[1760038888605,3.71175482,4335.0,4334.9,0.77234605]
[1760038889109,3.71175482,4335.0,4334.9,3.98014605]
[1760038889314,3.03395482,4335.0,4334.9,4.39512605]
[1760038889610,3.25365482,4335.0,4334.9,4.39512605]
[1760038891702,3.48075482,4335.0,4334.9,4.39512605]
[1760038893615,3.79685482,4335.0,4334.9,4.39512605]
[1760038894303,3.79685482,4335.0,4334.9,3.62562605]
[1760038894508,4.31732605,4335.0,4334.9,3.62562605]
[1760038894914,4.31732605,4335.0,4334.9,4.17332605]
[1760038895109,4.31732605,4335.0,4334.9,4.39512605]
[1760038895322,4.00122605,4335.0,4334.9,4.39512605]
[1760038895910,4.34502605,4335.0,4334.9,4.39512605]
[1760038896111,4.34502605,4335.0,4334.9,4.17332605]
[1760038896416,4.34502605,4335.0,4334.9,3.21064605]
[1760038896616,4.34502605,4335.0,4334.9,3.62562605]
[1760038897116,4.34502605,4335.0,4334.9,0.00284605]
[1760038898012,4.34502605,4335.0,4334.9,0.41782605]
[1760038898425,4.57602605,4335.0,4334.9,0.76432605]
[1760038898819,4.57602605,4335.0,4334.9,0.34934605]
[1760038899020,4.57602605,4335.0,4334.9,0.00284605]
[1760038899522,4.57602605,4335.0,4334.9,0.41782605]
[1760038900020,4.57602605,4335.0,4334.9,0.00284605]
[1760038900919,4.57602605,4335.0,4334.9,0.41782605]
[1760038901622,4.57602605,4335.0,4334.9,0.00284605]
[1760038902310,4.34502605,4335.0,4334.9,0.00284605]
[1760038902515,4.57602605,4335.0,4334.9,0.00284605]
[1760038902721,4.34502605,4335.0,4334.9,0.00284605]
[1760038903022,4.57602605,4335.0,4334.9,0.00284605]
[1760038906217,4.57602605,4335.0,4334.1,3.2078]
[1760038906218,0.7701,4334.4,4334.1,3.2078]
[1760038906423,0.337,4333.7,4333.6,3.2078]
[1760038906619,1.52157123,4333.7,4333.6,3.6229]
[1760038906820,4.35552332,4333.7,4333.6,3.6229]
[1760038907124,4.58652332,4333.7,4333.6,3.62575038]
[1760038907617,4.01852332,4333.7,4333.6,4.39975038]
[1760038907817,3.80082332,4333.7,4333.6,9.39975038]
[1760038908023,0.52047123,4333.7,4333.6,9.39975038]
[1760038908326,0.7701,4334.7,4334.6,0.96701]
[1760038908625,4.58208416,4334.7,4334.6,0.96701]
[1760038909025,4.24508416,4334.7,4334.6,1.18901]
[1760038909324,4.58208416,4334.7,4334.6,0.41501]
[1760038910119,4.58208416,4334.7,4334.4,0.41503]
[1760038910324,0.7701,4334.4,4334.3,0.74724]
[1760038910625,4.50051534,4334.4,4334.3,0.96704]
[1760038920428,4.50051534,4334.4,4334.3,0.74724]
[1760038920621,4.50051534,4334.4,4334.3,0.41504]
[1760038921734,4.50051534,4334.4,4334.3,0.96704]
[1760038922331,4.50051534,4334.4,4334.3,0.74724]
[1760038922531,4.50051534,4334.4,4333.9,3.54]
[1760038922736,0.95430693,4334.3,4334.2,0.41505]
[1760038923235,4.35330183,4334.3,4334.2,0.41505]
[1760038924935,4.35330183,4334.3,4334.2,0.74725]
[1760038925133,4.35330183,4334.3,4334.2,0.96705]
[1760038925435,4.24730183,4334.3,4334.2,1.18905]
[1760038925733,4.58910183,4334.3,4334.2,1.18905]
[1760038926838,4.58910183,4334.3,4334.2,0.96705]
[1760038928232,4.58910183,4334.3,4333.9,3.2078]
[1760038928437,4.58910183,4334.3,4333.6,0.00285038]
[1760038928438,0.7752,4333.7,4333.6,0.00285038]
[1760038928640,1.0062,4333.7,4333.6,0.41795038]
[1760038928838,1.0062,4333.7,4333.6,0.73215038]
[1760038929239,1.0062,4333.7,4333.6,0.95125038]
[1760038930339,1.0062,4333.7,4333.6,1.18325038]
[1760038933635,1.0062,4333.7,4333.6,0.73215038]
[1760038933834,1.0062,4333.7,4333.6,0.95125038]
[1760038934046,1.53087995,4333.7,4333.6,0.95125038]
[1760038934345,4.57823609,4333.7,4333.6,0.95125038]
[1760038935047,4.57823609,4333.7,4333.6,0.00285038]
[1760038935245,4.57823609,4333.7,4333.6,0.41795038]
[1760038935934,4.34723609,4333.7,4333.6,0.95125038]
[1760038936140,4.23643609,4333.7,4333.6,1.18325038]
[1760038937547,4.57823609,4333.7,4333.6,1.18325038]
[1760038937747,4.34723609,4333.7,4333.6,1.18325038]
[1760038938744,4.34723609,4333.7,4333.6,0.95125038]
[1760038939145,4.34723609,4333.7,4333.6,1.18325038]
[1760038941251,3.57203609,4333.7,4333.6,1.18325038]
[1760038942049,3.78193609,4333.7,4333.6,1.18325038]
[1760038943247,4.01293609,4333.7,4333.6,1.18325038]
[1760038943446,4.23643609,4333.7,4333.6,1.18325038]
[1760038943646,4.57823609,4333.7,4333.6,1.18325038]
[1760038943849,4.57823609,4333.7,4333.6,0.41795038]
[1760038944256,4.57823609,4333.7,4333.6,0.73215038]
[1760038944758,4.57823609,4333.7,4333.6,0.41795038]
[1760038945250,4.57823609,4333.7,4333.6,0.73215038]
[1760038946652,4.57823609,4333.7,4333.6,0.95125038]
[1760038950658,4.57823609,4333.7,4333.6,0.41795038]
[1760038958864,0.7713,4333.0,4332.9,3.96357]
[1760038959066,1.52697995,4333.0,4332.9,3.96357]
[1760038959266,4.47764875,4333.0,4332.9,4.19307]
[1760038959870,4.47764875,4333.0,4332.9,4.19569353]
[1760038960071,4.47764875,4333.0,4332.9,3.62559353]
[1760038960265,4.47764875,4333.0,4332.9,3.21042353]
[1760038960467,4.59854875,4333.0,4332.9,0.00262353]
[1760038961761,0.4395,4332.2,4332.1,0.41524]
[1760038961966,1.0023,4332.2,4332.1,0.41524]
[1760038962266,3.98903785,4332.2,4332.1,0.41524]
[1760038962659,3.98903785,4332.2,4332.1,0.98534]
[1760038962869,3.99115706,4332.2,4332.1,0.98749356]
[1760038963266,3.99115706,4332.2,4332.1,0.75799356]
[1760038963970,3.99115706,4332.2,4332.1,0.98749356]
[1760038964874,3.20725706,4332.2,4332.1,1.20359356]
[1760038965070,3.43825706,4332.2,4332.1,1.20359356]
[1760038966864,3.21985706,4332.2,4332.1,1.20359356]
[1760038967075,2.98885706,4332.2,4332.1,1.20359356]
[1760038967775,3.21545706,4332.2,4332.1,1.20359356]
[1760038969674,2.98885706,4332.2,4332.1,1.20359356]
[1760038970172,3.21545706,4332.2,4332.1,1.20359356]
[1760038971576,3.21545706,4332.2,4332.1,4.41139356]
[1760038971783,3.44295706,4332.2,4332.1,4.41139356]
[1760038971981,3.78645706,4332.2,4332.1,4.41139356]
[1760038973777,3.21545706,4332.2,4332.1,4.41139356]
[1760038978989,2.98885706,4332.2,4332.1,4.41139356]
[1760038980292,0.4541,4332.8,4332.7,1.20839]
[1760038980485,1.0286,4332.8,4332.7,0.5744]
[1760038980691,0.5701,4332.4,4332.3,0.75833]
[1760038980894,1.0286,4332.4,4332.3,0.41523]
[1760038981092,3.97438254,4332.4,4332.3,0.41523]
[1760038981291,3.97665507,4332.4,4332.1,0.41740356]
[1760038981690,3.97665507,4332.4,4332.2,0.41524]
[1760038982485,3.97665507,4332.4,4332.3,0.75833]
[1760038982995,3.97665507,4332.4,4332.3,0.41523]
[1760038983997,3.40215507,4332.4,4332.3,0.64653]
[1760038984201,3.97665507,4332.4,4332.3,1.20843]
[1760038985897,3.97665507,4332.4,4332.3,0.98963]
[1760038986997,3.74565507,4332.4,4332.3,0.98963]
[1760038987198,3.40215507,4332.4,4332.3,1.22163]
[1760038987398,3.63315507,4332.4,4332.3,1.22163]
[1760038988201,4.16466179,4332.4,4332.3,1.22163]
[1760038988801,4.50256179,4332.4,4332.3,1.22163]
[1760038989100,4.50256179,4332.4,4332.3,0.98963]
[1760038989495,4.50256179,4332.4,4332.3,0.75833]
[1760038989799,4.50256179,4332.4,4332.3,0.41523]
[1760038992003,4.27156179,4332.4,4332.3,0.76373]
[1760038992199,4.50256179,4332.4,4332.3,0.99123]
[1760038992404,4.50256179,4332.4,4332.3,1.22323]
[1760038993393,4.27156179,4332.4,4332.3,1.22323]
[1760038993592,4.50256179,4332.4,4332.3,1.22323]
[1760038996499,4.16466179,4332.4,4332.3,1.22323]
[1760038996701,3.47956179,4332.4,4332.3,1.22323]
[1760038996904,3.71056179,4332.4,4332.3,1.22323]
[1760038997506,3.92196179,4332.4,4332.3,1.22323]
[1760038997695,0.53377925,4332.4,4332.3,1.22323]
[1760039000701,0.53377925,4332.4,4332.3,6.22323]
[1760039001401,0.00227253,4332.4,4332.3,6.22323]
[1760039003107,1.79279137,4333.4,4333.3,0.2275]
[1760039003303,1.06785992,4333.4,4333.3,0.808]
[1760039003509,4.47339588,4333.4,4333.3,0.808]
[1760039003703,4.36039588,4333.4,4333.3,0.99113]
[1760039003910,3.59949588,4333.4,4333.3,1.22313]
[1760039004130,3.60159316,4333.4,4333.3,1.22313]
[1760039004312,3.81299316,4333.4,4333.3,0.808]
[1760039004607,4.36249316,4333.4,4333.3,1.22313]
[1760039007015,4.02459316,4333.4,4333.3,1.22313]
[1760039008609,4.36249316,4333.4,4333.3,1.22313]
[1760039009008,4.59349316,4333.4,4333.3,1.22313]
[1760039009212,4.59349316,4333.4,4333.3,0.808]
[1760039009412,4.59349316,4333.4,4332.2,4.24589]
[1760039009413,0.423,4332.8,4332.2,4.24589]
[1760039009718,4.20846749,4332.7,4332.5,0.41521]